Cogmind - Beta 17 @@@ ROGUE MODE // 2026.07.23 @ 22:15:46 Player: Akl Result: Destroyed by Autobeam Turret with Autobeam Performance ------------- Evolutions (0) 0 Regions Visited (2) 400 Robots Destroyed (16) 80 Value Destroyed (372) 372 Prototype IDs (0) 0 Alien Tech Used (0) 0 Bonus (0) 0 TOTAL SCORE: 852 Bonus ------- None Cogmind --------- Core Integrity 0/250 Matter 300/300 Energy 199/200 System Corruption 0% Temperature Cool (6) Movement Rolling (110) Location -10/Subcaves Parts ------- > --- POWER (1) -------- Subdweller Power Source > --- PROPULSION (2) --- Subdweller Monowheel Subdweller Monowheel > --- UTILITY (2) ------ Small Storage Unit Seismic Detector > --- WEAPON (2) ------- Battle Rifle Barrage Gun > --- INVENTORY (8) ---- Ion Engine Machine Analyzer Improved Terrain Scanner Battle Rifle Battle Rifle Grenade Launcher Peak State ------------ > --- POWER ------------ Subdweller Power Source > --- PROPULSION ------- Subdweller Monowheel Subdweller Monowheel > --- UTILITY ---------- Small Storage Unit Seismic Detector > --- WEAPON ----------- Battle Rifle Barrage Gun > --- INVENTORY -------- Ion Engine Machine Analyzer Improved Terrain Scanner Battle Rifle Battle Rifle Grenade Launcher [Rating: 14] Favorites ----------- Power Light Ion Engine Engine Light Ion Engine Propulsion Hover Unit Leg Aluminum Leg Wheel Subdweller Monowheel Hover Unit Hover Unit Utility Seismic Detector Device Seismic Detector Storage Small Storage Unit Weapon Light Cannon Energy Gun Medium Laser Ballistic Gun Barrage Gun Ballistic Cannon Light Cannon Launcher Grenade Launcher Build | -11 -10 -10 ------- Run | Yrd Mat Sub Slots Evolved . | . . . Power . | . . . Propulsion . | . . . Utility . | . . . Weapon . | . . . Parts Attached 22 | 9 7 6 Power 4 | 1 1 2 Engine 4 | 1 1 2 Core . | . . . Reactor . | . . . Propulsion 7 | 3 2 2 Treads . | . . . Leg 1 | 1 . . Wheel 4 | 2 . 2 Hover 2 | . 2 . Flight . | . . . Utility 3 | 3 . . Device 2 | 2 . . Storage 1 | 1 . . Processor . | . . . Hackware . | . . . Protection . | . . . Artifact . | . . . Weapon 8 | 2 4 2 Energy Gun 1 | 1 . . Energy Cannon . | . . . Ballistic Gun 3 | 1 . 2 Ballistic Cannon 3 | . 3 . Launcher 1 | . 1 . Special Weapon . | . . . Impact Weapon . | . . . Slashing Weapon . | . . . Piercing Weapon . | . . . Special Melee Weapon . | . . . Unidentified Prototypes . | . . . Parts Lost 10 | . 3 7 Power 3 | . 1 2 Propulsion 3 | . 1 2 Utility 1 | . . 1 Weapon 3 | . 1 2 Highest Loss Streak 5 | . 3 5 To Critical Strikes . | . . . Average Backups 4 | 1 4 5 Power . | 1 . 1 Propulsion . | . 1 . Utility 1 | . 1 1 Weapon 1 | . 1 2 Tool/Special . | . . . Unused Backups 4 | . . 4 Power 1 | . . 1 Propulsion . | . . . Utility 1 | . . 1 Weapon 2 | . . 2 Tool/Special . | . . . Average Slot Usage (%) 81 | . 96 73 Engine 10 | . 12 9 Leg 3 | . . 5 Wheel 8 | . 8 8 Hover 7 | . 18 1 Device 22 | . 28 19 Storage 5 | . . 8 Ballistic Gun 13 | . 4 18 Ballistic Cannon 7 | . 20 . Peak Build Rating 14 | 9 9 14 Average Rating 9 | 5 8 9 On Entrance 6 | . 9 9 Avg Prop Armor Cover (%) 5 | 9 . 5 Naked Turns . | . . . Heaviest Build 16 | 13 13 16 Greatest Support 40 | 20 20 40 Greatest Overweight (x) 2 | 1 1 2 Average Overweight (x) . | . . . Largest Inventory Capacity 8 | 8 5 8 Average Capacity 6 | 5 5 6 Most Carried 8 | 5 5 8 Average Carried 4 | 2 4 5 Final Capacity 8 | 5 5 8 Final Carried 6 | 3 4 6 Class Distribution -------------------- 57% | Mutant 42% | Scavenger-Mutant Dominant Class ---------------- Scavenger-Mutant | -10/Materials Mutant | -10/Subcaves Resources | -11 -10 -10 ----------- Run | Yrd Mat Sub Matter Collected 700 | 298 269 133 Remotely . | . . . Salvage Created 440 | 114 238 88 Parts 36 | 11 20 5 Haulers Intercepted . | . . . Recyclers Shooed 2 | . 2 . Parts Field Recycled . | . . . Retrieved Matter . | . . . Parts Self-Destructed 4 | . . 4 Prevented . | . . . Parts Restored . | . . . Kills | -11 -10 -10 ------- Run | Yrd Mat Sub Combat Hostiles Destroyed 10 | . 8 2 Guns 7 | . 5 2 Cannons 3 | . 3 . Classes Destroyed 7 | 2 4 1 Tunneler 3 | 3 . . Recycler 1 | 1 . . Operator 1 | . 1 . Watcher 1 | . 1 . Swarmer 3 | . 3 . Grunt 5 | . 5 . Subdweller 2 | . . 2 Best Kill Streak 6 | 2 6 2 Combat Bots Only 4 | . 4 2 Max Kills in Single Turn 2 | 2 1 1 Gunslinging . | . . . Exploded . | . . . Melee . | . . . Uniques/NPCs Destroyed . | . . . Combat | -11 -10 -10 -------- Run | Yrd Mat Sub Hostile Shots Fired 88 | . 45 43 Missed 24 | . 12 12 Hits 64 | . 33 31 Projectile 64 | . 33 31 Critical Strikes 3 | . 1 2 Damage Taken 979 | . 349 630 Core 254 | . 76 178 Absorbed by Shields . | . . . Core Remaining (%) 100 | 100 . . Volleys Fired 47 | 6 29 12 Largest 2 | 2 2 2 Hottest 70 | 70 70 60 Shots Fired 89 | 12 56 21 Gun 51 | 12 27 12 Cannon 38 | . 29 9 Launcher . | . . . Special . | . . . Kinetic 82 | 6 55 21 Thermal 7 | 6 1 . Explosive . | . . . Electromagnetic . | . . . Robot Hit Streak 11 | 9 11 6 Robot Miss Streak 5 | . 5 2 Penetration Max . | . . . Secondary Targets . | . . . Shots Hit Robots 52 | 9 29 14 Core Hits 23 | 5 13 5 Critical Kills . | . . . Critical Parts Destroyed . | . . . Critical Strikes 3 | 2 1 . Burn 2 | 2 . . Blast 1 | . 1 . Melee Attacks . | . . . Impact . | . . . Slashing . | . . . Piercing . | . . . Sneak Attacks . | . . . Combat Hostiles . | . . . Follow-up Attacks . | . . . Damage Inflicted 772 | 119 444 209 Guns 462 | 119 216 127 Cannons 310 | . 228 82 Explosions . | . . . Melee . | . . . Ramming . | . . . Kinetic 711 | 70 432 209 Thermal 61 | 49 12 . Explosive . | . . . Electromagnetic . | . . . Impact . | . . . Slashing . | . . . Piercing . | . . . Highest Corruption . | . . . Average Corruption . | . . . Corruption Purged . | . . . Corruption Blocked . | . . . Overload Shots . | . . . Overflow Damage 8 | . 8 . Projectiles 8 | . 8 . Explosions . | . . . Melee . | . . . Knockbacks 9 | . 6 3 Impact . | . . . Kinetic 8 | . 5 3 Secondary 1 | . 1 . Self-Inflicted Damage . | . . . Shots . | . . . Rammed . | . . . Targets Rammed . | . . . Kicked . | . . . Crushed . | . . . Highest Temperature 45 | 45 15 . Average Temperature 12 | 20 7 . Received Heat Transfer 246 | . 141 105 Siege Activations . | . . . Martial Activations . | . . . Shielding Activations . | . . . Robots Disrupted . | . . . Combat Hostiles . | . . . Robots Corrupted . | . . . Combat Hostiles . | . . . Parts Fried . | . . . Impact Corruptions . | . . . Robots Melted . | . . . Combat Hostiles . | . . . Parts Melted . | . . . Heat Transferred 333 | 296 37 . Parts Sabotaged . | . . . Parts Stolen . | . . . Parts Stripped . | . . . Power Chain Reactions . | . . . Alert | -11 -10 -10 ------- Run | Yrd Mat Sub Maximum Alert Level . | . . . Low Security (%) 100 | 100 100 . Level 1 . | . . . Level 2 . | . . . Level 3 . | . . . Level 4 . | . . . Level 5 . | . . . High Security . | . . . Max Security . | . . . Peak Influence 142 | 10 142 . Initial . | . . . Average 60 | 3 69 . Influence Increases 339 | 20 244 75 Destroy 0b10 Robot/C 160 | . 160 . Destroy 0b10 Robot/NC 30 | 20 10 . Destroy Leader 32 | . 32 . Successful Hack 12 | . 12 . Disable Machine 30 | . 30 . Lose Combat Pursuer 75 | . . 75 Influence Decreases 339 | 20 216 103 Entered New Map 14 | . . 14 Time Decay 271 | 20 186 65 Lost Part 54 | . 30 24 Squads Dispatched 1 | . 1 . Investigation . | . . . Extermination . | . . . Reinforcement 1 | . 1 . Assault . | . . . Garrison . | . . . Intercept . | . . . Searches Triggered . | . . . Construction Impeded . | . . . Haulers Reinforced . | . . . Active Scanning Responses . | . . . Cargo Convoy Interrupts . | . . . Stealth | -11 -10 -10 --------- Run | Yrd Mat Sub Distress Signals 1 | . 1 . Communications Jammed . | . . . Distress Signals . | . . . Times Spotted 27 | . 12 15 Peak Tracking Total 10 | . 5 10 Tactical Retreats 3 | . . 3 Traps | -11 -10 -10 ------- Run | Yrd Mat Sub Traps Triggered . | . . . Indirectly . | . . . Trap Hack Attempts . | . . . Triggered . | . . . Disarmed . | . . . Reprogrammed . | . . . Reused . | . . . Traps Extracted . | . . . Installed . | . . . Triggered . | . . . Machines | -11 -10 -10 ---------- Run | Yrd Mat Sub Machines Disabled 2 | . 2 . Max in Single Turn 1 | . 1 . Machines Repaired . | . . . Machines Dismantled . | . . . Machines Sabotaged . | . . . Overloaded Fab Kills . | . . . Hacking | -11 -10 -10 --------- Run | Yrd Mat Sub Machines Accessed 3 | . 3 . Terminals 2 | . 2 . Fabricators . | . . . Repair Stations . | . . . Recycling Units 1 | . 1 . Scanalyzers . | . . . Garrison Access . | . . . Total Hacks 6 | . 6 . Successful 3 | . 3 . Failed 3 | . 3 . Catastrophic . | . . . Database Lockouts . | . . . Manual 6 | . 6 . Terminals 5 | . 5 . Fabricators . | . . . Repair Stations . | . . . Recycling Units 1 | . 1 . Scanalyzers . | . . . Garrison Access . | . . . Terminal Hacks . | . . . Fabricator Hacks . | . . . Repair Station Hacks . | . . . Recycling Unit Hacks . | . . . Scanalyzer . | . . . Garrison Access Hacks . | . . . Unauthorized Hacks 3 | . 3 . Terminals 2 | . 2 . Botnet 2 | . 2 . Fabricators . | . . . Repair Stations . | . . . Recycling Units 1 | . 1 . Reject 1 | . 1 . Scanalyzers . | . . . Garrison Access . | . . . Data Cores Recovered . | . . . Used . | . . . Hacking Detections 2 | . 2 . Full Trace Events 1 | . 1 . Feedback Events . | . . . Feedback Blocked . | . . . Robot Schematics Acquired . | . . . Robots Built . | . . . Authchips . | . . . Time . | . . . Total Robot Build Rating . | . . . Part Schematics Acquired . | . . . Parts Built . | . . . Authchips . | . . . Time . | . . . Total Part Build Rating . | . . . Part Studies Acquired . | . . . Parts Repaired . | . . . Time . | . . . Parts Recycled . | . . . Recycled Matter . | . . . Retrieved Matter . | . . . Retrieved Components . | . . . Parts Scanalyzed . | . . . Part Schematics Acquired . | . . . Parts Damaged . | . . . Bothacking | -11 -10 -10 ------------ Run | Yrd Mat Sub Used RIF Installer . | . . . Robots Hacked . | . . . Non-combat . | . . . Combat . | . . . Robot Hacks Applied . | . . . Relay Couplers Released . | . . . Fabnet Peak Effective % . | . . . Robots Rewired . | . . . Allies Hacked . | . . . Hacks Repelled . | . . . Allies | -11 -10 -10 -------- Run | Yrd Mat Sub Total Allies . | . . . Largest Group . | . . . Highest-Rated Group . | . . . Highest-Rated Ally . | . . . Total Orders . | . . . Ally Attacks . | . . . Total Damage . | . . . Kills . | . . . Allies Corrupted . | . . . Allies Melted . | . . . Intel | -11 -10 -10 ------- Run | Yrd Mat Sub Active Infowar (turns) 1254 | 24 423 807 Terrain 786 | 24 423 339 Seismic 1232 | 2 423 807 Robot Analysis Total . | . . . Derelict Logs Recovered 1 | . . 1 Drone Launches . | . . . Drone Recoveries . | . . . Exploration | -11 -10 -10 ------------- Run | Yrd Mat Sub Turns Passed 1294 | 64 423 807 Spaces Moved 1094 | 35 259 800 Core 390 | 11 . 379 Treads . | . . . Legs 200 | 1 . 199 Wheels 289 | 23 49 217 Hover 215 | . 210 5 Flight . | . . . Fastest Speed 50 | 50 56 50 Average Speed 95 | 72 106 93 Slowest Speed 190 | 120 125 190 Overloaded Moves . | . . . Propulsion Burnouts . | . . . Robots Hopped . | . . . Potential Cave-ins . | . . . Cave-ins Triggered . | . . . Exploration Rate (%) 25 | 3 37 35 Regions Visited 2 Branch Regions 1 Pre-discovered Areas 2 | . . 2 Known Exits Taken . | . . . Unknown Exits Taken 2 | 1 1 . Scrap Searched 4 | . . 4 Spaces Dug . | . . . Terrain Destroyed . | . . . Melee . | . . . Projectile . | . . . AOE . | . . . Terrain Rammed . | . . . Walls Destroyed . | . . . Machines Disabled . | . . . Actions | -11 -10 -10 --------- Run | Yrd Mat Sub Total 1250 | 62 350 838 Wait 54 | . 45 9 Move 1092 | 34 258 800 Hop . | . . . Pick Up 25 | 11 6 8 Fast Attach 3 | . 1 2 Attach 16 | 8 3 5 Detach 1 | 1 . . Swap 6 | 1 4 1 Drop 6 | 1 4 1 Fire 47 | 6 29 12 Melee . | . . . Ram . | . . . Kick . | . . . Crush . | . . . Escape Stasis . | . . . Rewire . | . . . Trap . | . . . Miscellaneous . | . . . Route ------- -11/Scrapyard -10/Materials (discovered 2 exits: [*Mat] / [*Sub]) -10/Subcaves (discovered 1 exit: [*Rec]) History --------- Turn | Location | Event 8 | -11/Scrapyard | Discovered new exit (range 16) 65 | -11/Scrapyard | Entered Materials 193 | -10/Materials | Lost 3 parts (1p1n1w) 445 | -10/Materials | Discovered new exit (range 13) 478 | -10/Materials | Discovered new exit (range 8) 488 | -10/Materials | Entered Subcaves 489 | -10/Subcaves | Ambushed by Subdwellers from Twisted Machinery 489 | -10/Subcaves | Approached by a straggling Scientist 505 | -10/Subcaves | Learned location of Mines (-9) 514 | -10/Subcaves | Core integrity fell below 50% 526 | -10/Subcaves | Learned location of Zion (-6) 526 | -10/Subcaves | Met a Zionite searching for "candidates" 542 | -10/Subcaves | Lost 5 parts (1p2n2w) 548 | -10/Subcaves | A Subdweller sparked back to life 548 | -10/Subcaves | A Subdweller sparked back to life 637 | -10/Subcaves | Ambushed by Subdwellers from Twisted Machinery 685 | -10/Subcaves | A swath of the cavern ceiling suddenly collapsed 799 | -10/Subcaves | Build established: Mutant 991 | -10/Subcaves | Core integrity fell below 20% 1079 | -10/Subcaves | A swath of the cavern ceiling suddenly collapsed 1295 | -10/Subcaves | Discovered new exit (range 8) 1295 | -10/Subcaves | Destroyed by Autobeam Turret with Autobeam Last Messages --------------- 00828_ Acquired 10 matter. 00835_ Acquired Battle Rifle. 01002_ C0-8D3(R) destroyed. 01010_ Acquired 28 matter. 01016_ Lgt. Ion Engine destroyed. 01018_ Acquired Sub. Monowheel. 01022_ MK-7UK(R) destroyed. 01043_ Acquired 14 matter. 01051_ Acquired Sub. Monowheel. 01053_ Dropped Aluminum Leg. 01056_ Acquired 20 matter. 01058_ Acquired Sub. Power Source. 01060_ Acquired 5 matter. A swath of the cavern ceiling suddenly collapses. 01160_ Sub. Monowheel shoots sparks and powers down. 01215_ 76-5O6(u) builds Twisted Machinery. 01247_ Acquired 5 matter. 01295_ EXIT=FOUND Map ----- +----------------------------------------------------+ | ???????????????????????? ???######### ##??## | | ????????????????????????????# ## ###### | | ?????????????????????????????# ## # | | ?????????????????????????#???# | | ????????????????????????????## #### # # | | ????????????????? ??##??##### #??# # # | | ????????????????# ?# #" # #?## # ### | | ????????????????? ??# "" ""### ## #### | | ?????????????????# ?# " "" # ## ### | | ?????????????????# # #"# "" ## ## | | ?????????????????? ##?##### ## #### ## | | ?????????????????## #??????##"#####??## | | ???????????????????? #??????#####?##### # ## | | ????????????????????# ####??????#""## ####### | | ??????????????????????#""###??###$""##" # ## # | | ??????????????????????###"###?#??#" | | ??????????????????????#?#""##???#""#"#" | | ???????????????????????##" "#?###""### ## # | | ????????????????????????## ### ##???#" ######### | | ???????????????????????## ##???## ### # | | ??????????????????####??## ##??# | | ??????????????????# ##### # #### | | ?????????????????## ##### ### | | ?????????????????# #### ####### | | ?????????????????# ## # #??#?## | | ?????????????????## #####@ ########## ##??# # | | ??????????????????# ##" &* %"#?#??# ##??# # ## | | ?????????????? ???# # %*&&%####"# #??# ## | | ????????????????### # [ %%%< " ##?? # | | ????????????????# #" t|t%%"<% " #??## | | ???????#????????# ##" "/[" & ##?# "#"" | | ???????????????## ##"""" """" < #### """" | | ???????##???#??# ######<#####< < ## ###"" | | ???#??#????????## ########???### ###??#"" | | ??????#????????### # # ####?## ####?????"" | | ?????????????????## ### #??#??????? | | ??????????????????# ## #??##?#???? | | ##????????????????### ### #?????????? | | %##???########??????# #?## ## #?????????? | | # ##### " ####?#### #### #######?????????? | | ## ###### # ### #% % ##???????#???????? | | ?### #### ## # ####???????#???#??? | | ???###????# ##?#???????##???#? | | ??????????##### # ## #??###???????? | | ??????????????##### ##### ##### ##?##???? | | ?????????????????# #??## % ## #???# #? | | ???????????????#?# ### #??# ## #### #? | | ??????????#?#????## ##?###??# ## # ## # #? | | ??????????????????##???#????## ####### #? | | ????????????????????##?????#?####?????## # ####? | +----------------------------------------------------+ Best States ------------- Heat Dissipation 25 Energy Generation 15 Energy Capacity 250 Matter Stores 300 Matter Capacity 300 Sight Range 16 Terrain Scan Range 16 Terrain Scan Density 10 Evasion (%) 53 Item Schematics ----------------- None Robot Schematics ------------------ None Fabricated ------------ Nothing Repaired ---------- Nothing Studied --------- None Alien Tech Used ----------------- None Achievements -------------- None Challenges ------------ None Game ------ Seed CarbideMolecularSabre Manual? 0 Play Time 00:14:54 Cumulative 36.3 hours Start 2026.07.23 @ 22:03:48 End 2026.07.23 @ 22:15:46 Sessions 1 Manual Loads 0 Difficulty Rogue Special Mode None Game No. 62 Rogue 62 Adventurer 0 Explorer 0 Win Type - Total 0 Types 0/0/0/0/0/0/0/0/0/0 Lore% 24 Gallery% 29 Achievement% 23 Wizard Run 0 Options --------- Layout 1 ASCII 0 Keyboard 0 Movement Mouse Keybinds 0 Fullscreen 1 Font 24/Smallcaps Map View 50x35 Zoom Use 0% Tactical HUD 1 Map Filters NONE Filters NONE Steam 1 RUN: 4814f784-18ae-49ee-9f5b-14a110b171fb